bitfinex/quotes_SOLUSD_20240711
["timestamp","ask_amount","ask_price","bid_price","bid_amount"]
[1720697275253,11.42,143.43,143.34,23.15518409]
[1720697275254,18.3951,143.37,143.34,23.15518409]
[1720697275576,18.3945,143.38,143.34,23.15518409]
[1720697275957,18.3945,143.38,143.34,30.13148409]
[1720697276484,11.42,143.38,143.34,23.15518409]
[1720697276866,16.0802,143.43,143.34,34.57518409]
[1720697277070,11.42,143.39,143.35,6.9756]
[1720697277275,17.431,143.43,143.36,12.81479866]
[1720697277579,18.3931,143.41,143.37,6.9746]
[1720697277788,18.3931,143.41,143.36,19.78999866]
[1720697277969,18.3931,143.41,143.38,1.39468453]
[1720697278789,6.9731,143.41,143.38,1.39468453]
[1720697279463,11.42,143.39,143.34,21.7603]
[1720697279804,17.4316,143.42,143.34,21.7603]
[1720697279805,18.3949,143.38,143.34,21.7603]
[1720697279963,11.42,143.37,143.34,21.7603]
[1720697281163,11.42,143.37,143.34,28.7366]
[1720697282686,17.6016,143.42,143.34,39.2012]
[1720697282990,0.17,143.41,143.34,39.2012]
[1720697283190,11.42,143.39,143.34,39.2012]
[1720697283373,18.3946,143.38,143.34,46.1773]
[1720697283694,6.9746,143.38,143.34,46.1773]
[1720697283857,18.3946,143.38,143.34,46.1773]
[1720697284057,11.42,143.38,143.35,6.9759]
[1720697284686,11.42,143.38,143.34,39.2012]
[1720697284687,0.17,143.42,143.36,17.4383]
[1720697284881,18.394,143.39,143.35,6.9756]
[1720697285473,6.9735,143.4,143.36,8.37032908]
[1720697285795,18.3935,143.4,143.36,8.37032908]
[1720697285997,18.3935,143.4,143.36,6.9754]
[1720697286661,17.4332,143.41,143.34,21.7603]
[1720697287065,18.394,143.39,143.35,6.9758]
[1720697287268,11.42,143.39,143.36,1.39493455]
[1720697287465,11.42,143.4,143.36,1.39493455]
[1720697287776,11.42,143.41,143.36,12.81493455]
[1720697288093,6.9726,143.42,143.37,6.9745]
[1720697288267,20.15414303,143.44,143.37,6.9745]
[1720697288583,11.42,143.41,143.37,6.9745]
[1720697288788,18.3933,143.41,143.36,18.3953]
[1720697288994,6.9735,143.4,143.36,18.3953]
[1720697289158,6.9735,143.4,143.36,11.42]
[1720697289355,18.3935,143.4,143.35,35.8352]
[1720697289789,6.9731,143.41,143.36,12.73010387]
[1720697290086,18.3931,143.41,143.36,12.73010387]
[1720697290684,18.3931,143.41,143.37,6.9748]
[1720697290898,6.9748,143.38,143.34,21.7603]
[1720697291081,11.42,143.39,143.35,6.9759]
[1720697291474,18.3938,143.4,143.36,6.9754]
[1720697291674,11.42,143.4,143.36,6.9754]
[1720697292780,18.3936,143.4,143.36,6.9754]
[1720697293593,11.42,143.4,143.36,6.9754]
[1720697294190,6.9732,143.41,143.37,6.9749]
[1720697294394,18.3932,143.41,143.37,6.9749]
[1720697295981,6.9735,143.4,143.36,24.4136]
[1720697296183,18.3935,143.4,143.36,24.4136]
[1720697296383,18.3939,143.4,143.36,17.4384]
[1720697297180,11.42,143.39,143.35,1.39496745]
[1720697297493,18.3936,143.4,143.35,18.83466745]
[1720697297993,6.9739,143.39,143.35,18.83466745]
[1720697298375,6.9739,143.39,143.35,25.81016745]
[1720697298691,18.3936,143.4,143.35,25.81016745]
[1720697299098,18.3936,143.4,143.36,6.9754]
[1720697299883,18.3936,143.4,143.35,25.81036745]
[1720697300190,18.3936,143.4,143.35,37.23036745]
[1720697300495,6.974,143.39,143.35,37.23036745]
[1720697301095,18.394,143.39,143.35,17.4397]
[1720697301295,18.3946,143.38,143.34,28.7365]
[1720697302001,18.3946,143.38,143.34,13.0855]
[1720697302190,6.9749,143.37,143.34,6.1093]
[1720697302378,18.3945,143.38,143.34,13.0856]
[1720697304287,18.3945,143.38,143.34,6.9763]
[1720697304491,11.42,143.37,143.34,6.9763]
[1720697305003,18.3949,143.37,143.33,6.9767]
[1720697305299,11.42,143.36,143.32,24.4197]
[1720697305499,6.9762,143.35,143.31,16.252]
[1720697305702,18.3962,143.35,143.31,23.2297]
[1720697306300,6.9765,143.34,143.31,0.1]
[1720697306500,18.3965,143.34,143.3,13.0518]
[1720697306681,11.42,143.34,143.31,6.9778]
[1720697306877,11.42,143.35,143.31,25.81753139]
[1720697307503,18.396,143.35,143.31,25.81753139]
[1720697307873,0.17,143.37,143.31,25.81753139]
[1720697307874,18.3956,143.36,143.31,37.23753139]
[1720697309001,18.3956,143.36,143.32,6.9773]
[1720697309204,6.9759,143.35,143.31,37.23753139]
[1720697309991,6.9765,143.34,143.31,18.83993139]
[1720697310288,6.9765,143.34,143.31,17.4445]
[1720697311487,6.9765,143.34,143.3,13.0519]
[1720697311708,6.9765,143.34,143.3,17.4937]
[1720697312013,18.3965,143.34,143.3,6.0737]
[1720697312496,18.3965,143.34,143.3,14.44733056]
[1720697313504,18.3965,143.34,143.3,8.37363056]
[1720697315706,6.9765,143.34,143.3,19.79363056]
[1720697316704,18.3965,143.34,143.3,8.37363056]
[1720697317010,18.3965,143.34,143.3,6.9782]
[1720697318007,18.3965,143.34,143.3,7.62201649]
[1720697318800,18.3965,143.34,143.3,6.9782]
[1720697319015,11.42,143.33,143.3,6.9782]
[1720697319318,18.397,143.33,143.29,25.2737674]
[1720697320119,11.42,143.33,143.3,8.37372478]
[1720697320502,18.3966,143.34,143.3,8.37372478]
[1720697321419,11.42,143.32,143.29,25.2737674]
[1720697322530,11.42,143.32,143.3,6.9782]
[1720697322712,11.42,143.33,143.3,6.9782]
[1720697323721,6.9772,143.33,143.29,18.2950674]
[1720697323930,11.42,143.32,143.29,18.2950674]
[1720697324114,6.9772,143.33,143.29,18.2950674]
[1720697324322,11.42,143.31,143.29,25.2737674]
[1720697324528,11.42,143.3,143.29,0.8479674]
[1720697326213,18.3983,143.3,143.29,0.8479674]
[1720697326408,18.5683,143.3,143.29,0.8479674]
[1720697326612,6.9768,143.34,143.29,7.8265674]
[1720697326914,11.42,143.33,143.29,7.8265674]
[1720697327117,18.3972,143.33,143.29,0.8479674]
[1720697327516,6.9777,143.32,143.29,0.8479674]
[1720697329220,18.3977,143.32,143.29,0.8479674]
[1720697329430,11.42,143.31,143.29,0.8479674]
[1720697329737,18.3975,143.32,143.29,0.8479674]
[1720697330302,18.3974,143.32,143.29,0.8479674]
[1720697330505,6.9774,143.32,143.29,0.8479674]
[1720697331130,6.9774,143.32,143.29,2.24358053]
[1720697331629,6.9774,143.32,143.29,2.2435431]
[1720697332003,18.3969,143.33,143.29,9.22215551]
[1720697332229,6.9775,143.32,143.29,0.8479674]
[1720697332424,6.9775,143.32,143.29,2.24352437]
[1720697332623,6.9769,143.33,143.29,9.22212437]
[1720697332827,6.9769,143.33,143.29,20.64212437]
[1720697333136,6.9775,143.32,143.29,0.8479674]
[1720697333530,18.3975,143.32,143.29,0.8479674]
[1720697334007,6.9775,143.32,143.29,0.8479674]
[1720697334214,6.9775,143.32,143.29,2.24353279]
[1720697334945,6.9779,143.31,143.29,0.8479674]
[1720697335650,6.9783,143.3,143.29,0.8479674]
[1720697337541,18.3983,143.3,143.29,0.8479674]
[1720697338812,6.9783,143.3,143.29,0.8479674]
[1720697339035,18.3983,143.3,143.29,0.8479674]
[1720697340022,6.9783,143.3,143.29,0.8479674]
[1720697340233,18.3983,143.3,143.29,0.8479674]
[1720697340933,6.9783,143.3,143.29,0.8479674]
[1720697343217,6.9779,143.31,143.29,0.8479674]
[1720697343418,11.42,143.33,143.29,0.8479674]
[1720697343640,33.8736,143.36,143.3,12.81543891]
[1720697343847,6.9771,143.33,143.3,1.39543891]
[1720697344035,6.9771,143.33,143.29,36.6934674]
[1720697347750,6.9765,143.34,143.3,12.81534353]
[1720697348060,6.9765,143.34,143.3,18.3981]
[1720697348237,6.9769,143.33,143.3,11.42]
[1720697348754,1.06521874,143.4,143.32,28.8632]
[1720697348937,11.42,143.37,143.33,1.39505662]
[1720697349333,11.42,143.37,143.32,11.42]
[1720697349552,6.976,143.35,143.32,11.42]
[1720697350047,6.9766,143.34,143.32,11.42]
[1720697350257,6.9766,143.34,143.31,11.42]
[1720697350453,6.9769,143.33,143.31,11.42]
[1720697350664,6.9769,143.33,143.3,11.42]
[1720697350969,6.9765,143.34,143.31,1.3953175]
[1720697351169,6.9765,143.34,143.31,12.8153175]
[1720697351337,6.9765,143.34,143.31,1.3953175]
[1720697351667,6.9765,143.34,143.3,18.3983]
[1720697352446,6.9771,143.33,143.29,7.8263674]
[1720697352645,6.9771,143.33,143.29,19.2463674]
[1720697352846,6.9771,143.33,143.3,6.9783]
[1720697353047,6.9765,143.34,143.3,6.9783]
[1720697353666,6.9765,143.34,143.31,1.39533985]
[1720697354973,6.9769,143.33,143.31,1.39533985]
[1720697355467,18.3966,143.34,143.31,1.39533985]
[1720697355758,18.3965,143.34,143.3,24.424]
[1720697355960,6.9765,143.34,143.31,1.39533657]
[1720697356468,6.976,143.35,143.31,19.79303657]
[1720697357046,6.9764,143.34,143.31,19.79303657]
[1720697357248,6.9764,143.34,143.31,12.81533657]
[1720697357471,6.9764,143.34,143.31,1.39533657]
[1720697358366,6.9759,143.35,143.31,19.79313657]
[1720697359044,18.3959,143.35,143.31,8.37313657]
[1720697361062,6.9759,143.35,143.31,19.79313657]
[1720697361566,6.9764,143.34,143.31,19.79313657]
[1720697361955,21.29563227,143.4,143.32,35.8406]
[1720697362142,21.29563227,143.4,143.33,1.39509809]
[1720697362143,11.42,143.37,143.33,1.39509809]
[1720697362466,6.9759,143.35,143.33,1.39509809]
[1720697362645,0.17,143.39,143.31,11.42]
[1720697362646,6.9764,143.34,143.31,11.42]
[1720697363169,6.977,143.33,143.29,25.2726674]
[1720697363354,6.977,143.33,143.3,11.42]
[1720697363556,6.9765,143.34,143.3,18.3982]
[1720697364263,6.9765,143.34,143.3,6.9782]
[1720697364474,6.9765,143.34,143.3,18.3982]
[1720697365271,18.3961,143.35,143.31,7.84628287]
[1720697365569,6.9761,143.35,143.31,19.26628287]
[1720697365756,6.9761,143.35,143.32,1.395214]
[1720697365963,0.17,143.39,143.33,1.39520566]
[1720697366162,6.9746,143.38,143.34,6.9761]
[1720697366371,6.9751,143.37,143.35,1.3950094]
[1720697367479,6.9751,143.37,143.34,1.39498273]
[1720697368361,6.9745,143.38,143.34,1.39498273]
[1720697368674,18.3945,143.38,143.34,1.39498273]
[1720697369175,6.9751,143.37,143.34,1.39498273]
[1720697370971,6.9756,143.36,143.34,1.39498273]
[1720697373665,6.976,143.35,143.33,11.42]
[1720697373865,6.9764,143.34,143.32,33.2423]
[1720697374370,6.9764,143.34,143.32,21.8223]
[1720697374683,6.9764,143.34,143.33,1.39514928]
[1720697374897,6.976,143.35,143.33,1.39514928]
[1720697378484,6.9756,143.36,143.33,1.39514928]
[1720697383087,6.9756,143.36,143.33,8.37194928]
[1720697383689,6.9756,143.36,143.33,1.39514928]
[1720697388196,6.9756,143.36,143.33,12.81514928]
[1720697388896,6.9756,143.36,143.33,19.79194928]
[1720697390094,6.9756,143.36,143.33,12.81514928]
[1720697390684,6.9756,143.36,143.33,19.79194928]
[1720697390993,6.9746,143.38,143.34,18.3964]
[1720697391191,6.9746,143.38,143.35,1.39488516]
[1720697391398,6.975,143.37,143.36,1.39488524]
[1720697392371,6.975,143.37,143.35,1.39490415]
[1720697392572,6.975,143.37,143.36,1.39490715]
[1720697393272,6.975,143.37,143.34,1.39491128]
[1720697395190,6.9754,143.36,143.34,1.39491128]
[1720697396096,6.9751,143.37,143.34,1.39491128]
[1720697396571,6.9751,143.37,143.33,18.3967]
[1720697397295,6.9751,143.37,143.34,1.39490959]
[1720697398307,6.9744,143.38,143.34,17.4409]
[1720697398597,6.9749,143.37,143.34,35.8372]
[1720697398803,20.26566589,143.41,143.34,35.8372]
[1720697398804,17.4325,143.41,143.36,11.42]
[1720697399105,11.42,143.4,143.35,11.42]
[1720697399395,11.42,143.4,143.36,1.39481846]
[1720697399586,6.9744,143.38,143.36,1.39481846]
[1720697400298,6.9744,143.38,143.34,28.8609]
[1720697401011,6.9744,143.38,143.34,35.8373]
[1720697401380,6.9744,143.38,143.35,1.39487215]
[1720697401677,11.42,143.37,143.32,33.2423]
[1720697401914,17.4325,143.41,143.33,18.8367347]
[1720697402202,6.974,143.39,143.35,6.9754]
[1720697402378,6.974,143.39,143.34,11.42]
[1720697402379,6.9728,143.42,143.38,6.9742]
[1720697402700,6.9728,143.42,143.32,21.8223]
[1720697402701,6.974,143.39,143.35,6.9757]
[1720697402871,6.974,143.39,143.35,18.3957]
[1720697403288,6.9736,143.4,143.36,18.3952]
[1720697403482,18.3932,143.41,143.37,1.39471989]
[1720697404095,6.9732,143.41,143.37,8.36931989]
[1720697404297,11.42,143.42,143.37,8.36951989]
[1720697404611,11.42,143.42,143.37,19.78951989]
[1720697404803,6.9733,143.41,143.37,19.78951989]
[1720697404980,6.9735,143.4,143.37,1.39471989]
[1720697405301,6.9735,143.4,143.37,1.39470705]
[1720697406299,6.9735,143.4,143.36,41.9078]
[1720697406903,18.3932,143.41,143.37,6.9749]
[1720697407201,6.9732,143.41,143.37,19.78961014]
[1720697407976,6.9723,143.43,143.39,18.3938]
[1720697408292,6.9723,143.43,143.38,17.4361]
[1720697408293,6.9717,143.44,143.4,37.22095336]
[1720697408497,18.3917,143.44,143.4,25.80095336]
[1720697408690,18.3917,143.44,143.4,24.4064]
[1720697409199,6.9717,143.44,143.4,24.4064]
[1720697409500,6.9717,143.44,143.4,35.8264]
[1720697410106,18.3905,143.47,143.43,6.972]
[1720697410290,6.9705,143.47,143.44,1.39415084]
[1720697410482,6.9697,143.48,143.44,19.78555084]
[1720697410690,6.9697,143.48,143.45,11.42]
[1720697410987,11.42,143.5,143.47,6.97]
[1720697411302,9.67011248,143.51,143.48,1.393784]
[1720697411303,6.9682,143.51,143.48,1.393784]
[1720697411794,6.9682,143.51,143.49,1.3936766]
[1720697412420,6.9686,143.5,143.47,11.42]
[1720697412599,32.5253,143.54,143.48,1.39368082]
[1720697412902,6.9678,143.52,143.49,12.81365131]
[1720697413111,6.9678,143.52,143.49,1.39365131]
[1720697414315,6.9678,143.52,143.49,12.81365131]
[1720697414995,6.9678,143.52,143.49,1.39365131]
[1720697415193,6.9673,143.53,143.49,12.81365131]
[1720697415404,6.9673,143.53,143.5,11.42]
[1720697415611,6.9673,143.53,143.51,1.39346877]
[1720697416591,11.42,143.55,143.51,1.39346877]
[1720697416788,6.967,143.54,143.51,1.39346877]
[1720697417314,18.387,143.54,143.51,1.39346877]
[1720697417510,6.967,143.54,143.51,1.39346877]
[1720697417713,6.967,143.54,143.5,8.36179773]
[1720697418014,6.967,143.54,143.51,11.42]
[1720697418189,6.9663,143.55,143.52,1.39335238]
[1720697418590,18.3863,143.55,143.52,1.39335238]
[1720697418795,6.9667,143.54,143.52,1.39335238]
[1720697419118,6.9667,143.54,143.51,1.39337074]
[1720697419417,6.9667,143.54,143.52,1.39337074]
[1720697419902,6.9671,143.53,143.52,1.39337074]
[1720697420334,6.9671,143.53,143.51,1.39338409]
[1720697420618,6.9671,143.53,143.52,1.39338332]
[1720697420813,6.9671,143.53,143.47,16.6553]
[1720697420814,6.9676,143.52,143.47,16.6553]
[1720697421010,6.9681,143.51,143.47,23.6252]
[1720697421229,6.9681,143.51,143.47,35.0452]
[1720697421524,18.3878,143.52,143.48,6.9696]
[1720697422309,6.9673,143.53,143.49,8.36246466]
[1720697424019,6.9667,143.54,143.49,1.39356466]
[1720697424229,6.9671,143.53,143.49,8.36246466]
[1720697424601,11.42,143.53,143.5,6.9685]
[1720697426796,11.42,143.54,143.51,8.36161792]
[1720697426997,11.42,143.54,143.51,8.36149368]
[1720697427311,18.3863,143.55,143.52,1.39339606]
[1720697430128,6.9667,143.54,143.52,1.39339606]
[1720697430321,6.9667,143.54,143.51,1.39336985]
[1720697430521,6.9667,143.54,143.52,1.39336623]
[1720697430723,20.27862247,143.59,143.52,12.81336623]
[1720697430916,11.42,143.56,143.52,1.39336623]
[1720697431227,6.9663,143.55,143.53,1.39326803]
[1720697432302,6.9663,143.55,143.52,1.39323822]
[1720697433319,6.9663,143.55,143.51,6.9678]
[1720697433510,6.9663,143.55,143.51,18.3878]
[1720697433728,18.3863,143.55,143.51,18.3878]
[1720697434816,18.3863,143.55,143.51,8.36110598]
[1720697435016,18.3863,143.55,143.52,1.39337227]
[1720697435825,18.3863,143.55,143.51,6.36117227]
[1720697436019,6.9663,143.55,143.51,7.75454537]
[1720697436219,18.3863,143.55,143.51,7.75454537]
[1720697436928,12.81337227,143.54,143.48,1.39337343]
[1720697437124,11.42,143.52,143.49,30.0]
[1720697437338,18.3882,143.51,143.49,30.0]
[1720697438108,11.42,143.51,143.48,6.9696]
[1720697438709,11.42,143.5,143.47,17.4246]
[1720697438912,11.42,143.49,143.46,13.4111]
[1720697439941,18.3894,143.49,143.45,6.971]
[1720697440105,17.4187,143.53,143.46,6.9705]
[1720697440106,6.9688,143.5,143.46,6.9705]
[1720697440312,18.3883,143.51,143.47,6.97]
[1720697440619,19.78147227,143.51,143.47,6.9699]
[1720697440810,19.78197227,143.5,143.46,24.3966]
[1720697441128,18.3892,143.49,143.45,6.9709]
[1720697441312,11.42,143.49,143.46,1.39392831]
[1720697441514,18.3887,143.5,143.46,1.39392831]
[1720697441739,33.4922,143.56,143.46,12.8139076]
[1720697442031,18.3876,143.53,143.46,1.3939076]
[1720697442329,18.3876,143.53,143.48,11.42]
[1720697442532,18.3876,143.53,143.49,1.39361617]
[1720697443856,6.9676,143.53,143.49,8.36261617]
[1720697444137,11.42,143.53,143.49,8.36261617]
[1720697445033,18.3872,143.53,143.49,8.36261617]
[1720697445236,18.3872,143.53,143.49,1.39361617]
[1720697445617,6.9677,143.52,143.49,1.39361617]
[1720697445820,18.3877,143.52,143.49,1.39361617]
[1720697446944,18.3877,143.52,143.48,24.3934]
[1720697447538,18.3877,143.52,143.48,17.4239]
[1720697447723,6.9681,143.51,143.48,17.4239]
[1720697448241,18.3881,143.51,143.48,18.81754838]
[1720697448736,6.9689,143.5,143.45,17.4273]
[1720697448933,11.42,143.49,143.45,17.4273]
[1720697449734,11.42,143.49,143.46,6.9705]
[1720697450325,18.3892,143.49,143.45,24.3982]
[1720697450831,11.42,143.49,143.46,1.39390201]
[1720697451032,1.39337227,143.53,143.47,11.42]
[1720697451234,11.42,143.53,143.49,6.9689]
[1720697451436,11.42,143.53,143.5,1.39355799]
[1720697451741,18.3873,143.53,143.5,1.39355799]
[1720697451940,18.3873,143.53,143.49,25.78487856]
[1720697452131,11.42,143.52,143.49,25.78487856]
[1720697452333,18.3878,143.52,143.49,17.4224]
[1720697452918,6.9673,143.53,143.49,25.78493974]
[1720697453142,11.42,143.53,143.49,25.78493974]
[1720697453835,11.42,143.53,143.5,6.9685]
[1720697454045,11.42,143.53,143.49,18.81603974]
[1720697454046,18.3872,143.53,143.49,24.3913]
[1720697454226,18.3872,143.53,143.49,25.78487906]
[1720697454832,11.42,143.52,143.49,25.78487906]
[1720697455137,11.42,143.52,143.49,17.4224]
[1720697455138,19.78107227,143.52,143.49,17.4224]
[1720697455647,11.42,143.52,143.49,25.78498681]
[1720697455939,6.9673,143.53,143.49,25.78498681]
[1720697455940,11.42,143.53,143.5,6.9685]
[1720697456153,19.78017227,143.54,143.51,1.39348697]
[1720697456324,19.78017227,143.54,143.5,8.36198904]
[1720697456725,11.42,143.54,143.5,8.36198904]
[1720697457242,18.3863,143.55,143.51,6.9681]
[1720697457446,18.3867,143.54,143.5,6.9685]
[1720697457645,11.42,143.54,143.49,24.3914]
[1720697457824,18.3868,143.54,143.5,8.36207087]
[1720697458232,6.9673,143.53,143.49,35.8113]
[1720697458447,6.9673,143.53,143.49,37.20480584]
[1720697458660,6.9676,143.52,143.49,18.81590584]
[1720697458833,11.42,143.53,143.49,18.81590584]
[1720697459146,18.3873,143.53,143.49,18.81590584]
[1720697459826,11.42,143.52,143.49,17.4224]
[1720697460035,11.42,143.52,143.49,18.81600935]
[1720697460653,19.78107227,143.52,143.49,17.4224]
[1720697460948,12.81337227,143.52,143.49,24.3915]
[1720697461253,11.42,143.52,143.49,25.78518652]
[1720697461451,6.9673,143.53,143.49,25.78518652]
[1720697461452,18.3873,143.53,143.49,25.78518652]
[1720697461827,1.39337227,143.56,143.49,18.81608652]
[1720697462136,6.9662,143.55,143.51,6.9679]
[1720697462341,18.3862,143.55,143.51,6.9679]
[1720697462549,6.9668,143.54,143.5,18.3885]
[1720697462729,19.78017227,143.54,143.5,6.9685]
[1720697462925,1.39337227,143.57,143.51,18.81309047]
[1720697463131,1.39337227,143.57,143.51,25.78109047]
[1720697463132,18.3865,143.55,143.51,25.78109047]
[1720697463350,6.9676,143.53,143.49,22.4087]
[1720697463545,12.81337227,143.54,143.5,1.3935399]
[1720697463546,6.968,143.52,143.5,1.3935399]
[1720697463723,6.968,143.52,143.49,28.25335517]
[1720697464129,6.9673,143.53,143.49,35.22235517]
[1720697464449,19.78017227,143.54,143.5,6.9685]
[1720697464740,8.36017227,143.54,143.51,1.39348423]
[1720697464959,6.9673,143.53,143.5,12.81348358]
[1720697468133,6.9673,143.53,143.5,1.39348358]
[1720697468947,6.9677,143.52,143.5,1.39348358]
[1720697470454,6.9673,143.53,143.5,1.39348358]
[1720697472956,6.9677,143.52,143.5,1.39348358]
[1720697473667,19.78067227,143.53,143.5,1.39348358]
[1720697474641,19.78067227,143.53,143.49,6.9691]
[1720697475073,8.36067227,143.53,143.49,6.9691]
[1720697475360,6.9683,143.51,143.48,17.4231]
[1720697475673,11.42,143.51,143.48,24.3925]
[1720697476244,18.3881,143.51,143.48,24.3925]
[1720697476562,11.42,143.51,143.48,24.3925]
[1720697478746,18.3885,143.51,143.47,6.97]
[1720697479059,18.3885,143.51,143.47,24.3951]
[1720697479371,11.42,143.51,143.48,6.9694]
[1720697479670,11.42,143.51,143.48,8.36311995]
[1720697479977,11.42,143.51,143.49,6.969]
[1720697480460,12.81337227,143.53,143.5,6.9686]
[1720697480663,11.42,143.53,143.5,8.3621257]
[1720697481168,18.3872,143.53,143.5,8.3621257]
[1720697483175,18.3872,143.53,143.5,1.3935257]
[1720697484465,11.42,143.52,143.49,18.81617469]
[1720697484672,11.42,143.52,143.47,6.9699]
[1720697484673,1.39337227,143.51,143.47,6.9699]
[1720697484847,1.39337227,143.51,143.47,18.3899]
[1720697485042,12.81337227,143.51,143.47,6.9699]
[1720697485370,11.42,143.5,143.46,23.7353]
[1720697485559,11.42,143.49,143.46,23.7353]
[1720697485760,11.42,143.49,143.46,32.09958625]
[1720697486066,18.3883,143.51,143.47,6.97]
[1720697486248,11.42,143.51,143.48,1.39375646]
[1720697486447,11.42,143.51,143.48,8.36325646]
[1720697486958,11.42,143.51,143.48,1.39375646]
[1720697487157,6.9678,143.52,143.49,1.3937448]
[1720697487366,18.3878,143.52,143.49,1.3937448]
[1720697488750,18.3878,143.52,143.48,1.39366798]
[1720697488950,18.3878,143.52,143.47,18.39]
[1720697488951,18.3878,143.52,143.49,1.39366879]
[1720697489263,11.42,143.52,143.48,8.36316804]
[1720697489455,11.42,143.52,143.49,1.39358728]
[1720697489871,6.9677,143.52,143.49,1.39358728]
[1720697490062,18.3877,143.52,143.49,1.39358728]
[1720697490378,18.3877,143.52,143.48,1.39358735]
[1720697490573,18.3877,143.52,143.49,1.39349022]
[1720697491578,18.3877,143.52,143.48,1.39360077]
[1720697491777,18.3877,143.52,143.49,1.39360387]
[1720697491978,12.81337227,143.51,143.46,17.7299]
[1720697492183,12.81337227,143.51,143.46,6.3099]
[1720697492184,11.42,143.5,143.46,6.3099]
[1720697492682,18.3887,143.5,143.46,6.3099]
[1720697493164,1.39337227,143.49,143.46,13.2804]
[1720697494872,17.78207227,143.5,143.46,13.2804]
[1720697495071,18.3887,143.5,143.46,13.2804]
[1720697495583,11.42,143.5,143.46,13.2804]
[1720697495764,11.42,143.5,143.47,6.97]
[1720697496083,11.42,143.5,143.46,13.2803]
[1720697496462,6.9682,143.51,143.46,13.2803]
[1720697496463,11.42,143.49,143.46,6.9704]
[1720697496867,11.42,143.49,143.47,6.97]
[1720697498288,11.42,143.49,143.46,6.9705]
[1720697499172,11.42,143.48,143.46,6.9705]
[1720697501864,6.9683,143.51,143.47,6.97]
[1720697502065,11.42,143.5,143.47,6.97]
[1720697502490,11.42,143.49,143.46,6.9705]
[1720697503566,11.42,143.48,143.46,6.9705]
[1720697504377,11.42,143.47,143.45,24.3982]
[1720697504684,11.42,143.47,143.43,6.6402]
[1720697505072,11.42,143.46,143.43,6.6402]
[1720697505667,11.42,143.46,143.44,6.9714]
[1720697505867,52.6488,143.5,143.45,6.9706]
[1720697506063,0.17,143.49,143.45,6.9706]
[1720697506279,7.1394,143.49,143.44,24.3999]
[1720697506469,0.17,143.49,143.44,24.3999]
[1720697506672,6.9701,143.47,143.44,17.4285]
[1720697507563,6.9701,143.47,143.43,6.9718]
[1720697507768,6.9701,143.47,143.43,8.36599416]
[1720697508070,0.17,143.49,143.44,6.9714]
[1720697508071,6.9698,143.48,143.44,6.9714]
[1720697508378,7.1392,143.49,143.44,6.9714]
[1720697508576,11.42,143.47,143.44,6.9714]
[1720697509194,7.1392,143.49,143.45,8.36500754]
[1720697509490,11.42,143.48,143.45,8.36500754]
[1720697509693,11.42,143.48,143.44,8.36534783]
[1720697510193,7.1392,143.49,143.44,8.36534783]
[1720697510492,11.42,143.48,143.44,8.36534783]
[1720697510692,7.1392,143.49,143.44,8.36534783]
[1720697510892,11.42,143.48,143.44,8.36534783]
[1720697511093,6.9692,143.49,143.44,8.36534783]
[1720697511392,6.9687,143.5,143.46,6.9704]
[1720697511572,11.42,143.49,143.46,8.36428727]
[1720697511773,11.42,143.49,143.46,1.39388727]
[1720697512395,18.3891,143.49,143.46,1.39388727]
[1720697513397,6.9684,143.51,143.46,1.39388727]
[1720697513613,18.3884,143.51,143.46,12.81388727]
[1720697513903,6.9687,143.5,143.46,19.78418727]
[1720697514205,18.3887,143.5,143.46,8.36418727]
[1720697516199,6.9687,143.5,143.46,19.78418727]
[1720697517585,6.9687,143.5,143.46,12.81388727]
[1720697517896,6.9691,143.49,143.45,23.5786]